fUSD/lending_fUSD_20251017
["ID","MTS","AMOUNT","RATE_DAILY","PERIOD"]
[391680383,1760725870981,-741.469166,0.000469,120]
[391680384,1760725870990,-151.0,0.000469,120]
[391680385,1760725871001,-741.469166,0.000469,120]
[391680386,1760725871010,-741.469166,0.000469,120]
[391680387,1760725871020,-151.0,0.000469,120]
[391680388,1760725871030,-151.0,0.000469,120]
[391680389,1760725871039,-151.0,0.000469,120]
[391680390,1760725871048,-359.280629,0.000469,120]
[391680391,1760725871058,-348.85478134,0.000469,15]
[391680392,1760725871066,-359.280629,0.000469,120]
[391680393,1760725871076,-151.0,0.000469,120]
[391680394,1760725871085,-359.280629,0.000469,120]
[391680395,1760725871095,-151.0,0.000469,120]
[391680396,1760725871104,-359.280629,0.000469,120]
[391680397,1760725871114,-151.0,0.000469,120]
[391680398,1760725871123,-166.04712,0.000469,120]
[391680399,1760725871132,-151.0,0.000469,120]
[391680400,1760725871142,-151.0,0.000469,120]
[391680401,1760725871151,-151.0,0.000469,30]
[391680402,1760725871160,-151.0,0.000469,30]
[391680403,1760725871169,-151.0,0.000469,120]
[391680404,1760725871179,-151.0,0.000469,120]
[391680405,1760725871188,-218.027628,0.000469,20]
[391680406,1760725871199,-218.027628,0.000469,20]
[391680407,1760725871208,-609.318175,0.000469,120]
[391680408,1760725871219,-342.892241,0.000469,120]
[391680409,1760725871229,-609.318175,0.000469,120]
[391680410,1760725871238,-218.027628,0.000469,20]
[391680411,1760725871252,-342.892241,0.000469,120]
[391680412,1760725871261,-609.318175,0.000469,120]
[391680413,1760725871271,-218.027628,0.000469,20]
[391680414,1760725871281,-342.892241,0.000469,120]
[391680415,1760725871292,-609.318175,0.000469,120]
[391680416,1760725871301,-342.892241,0.000469,120]
[391680417,1760725871311,-151.0,0.000469,120]
[391680418,1760725871323,-151.0,0.000469,120]
[391680419,1760725871332,-196.166673,0.000469,120]
[391680420,1760725871342,-194.446126,0.000469,120]
[391680421,1760725871351,-196.166673,0.000469,120]
[391680422,1760725871361,-196.166673,0.000469,120]
[391680423,1760725871370,-196.166673,0.000469,120]
[391680424,1760725871380,-727.29624766,0.00046953,120]
[391680425,1760725871389,-300.0,0.0004697,3]
[391680426,1760725871399,-400.0,0.0004697,3]
[391680427,1760725871409,-151.0,0.00046997,120]
[391680428,1760725871419,-300.0,0.00046998,30]
[391680429,1760725871428,-300.0,0.00046998,30]
[391680430,1760725871437,-300.0,0.00046999,30]
[391680431,1760725871447,-300.0,0.00046999,30]
[391680432,1760725871457,-1000.0,0.00046999,120]
[391680433,1760725871466,-151.0,0.00046999,120]
[391680434,1760725871475,-156.587,0.00046999,120]
[391680435,1760725871485,-200.0,0.00046999,120]
[391680436,1760725871494,-168.84223589,0.00046999,120]
[391680437,1760725871831,-300.0,0.00046999,30]
[391680438,1760725871850,-300.0,0.00046999,30]
[391680439,1760725871860,-150.0,0.00046999,120]
[391680440,1760725871870,-520.0,0.00046999,120]
[391680441,1760725871879,-539.24,0.00046999,120]
[391680442,1760725871888,-500.0,0.00046999,120]
[391680443,1760725871898,-559.19188,0.00046999,120]
[391680444,1760725871907,-500.0,0.00046999,120]
[391680445,1760725871917,-579.88197956,0.00046999,120]
[391680446,1760725871926,-500.0,0.00046999,120]
[391680447,1760725871936,-601.3376128,0.00046999,120]
[391680448,1760725871946,-500.0,0.00046999,120]
[391680449,1760725871955,-623.58710448,0.00046999,120]
[391680450,1760725871966,-500.0,0.00046999,120]
[391680451,1760725871976,-646.65982734,0.00046999,120]
[391680452,1760725871986,-500.0,0.00046999,120]
[391680453,1760725871995,-670.58624095,0.00046999,120]
[391680454,1760725872005,-500.0,0.00046999,120]
[391680455,1760725872015,-695.39793187,0.00046999,120]
[391680456,1760725872025,-500.0,0.00046999,120]
[391680457,1760725872035,-721.12765535,0.00046999,120]
[391680458,1760725872044,-500.0,0.00046999,120]
[391680459,1760725872054,-747.8093786,0.00046999,120]
[391680460,1760725872064,-500.0,0.00046999,120]
[391680461,1760725872074,-775.47832561,0.00046999,120]
[391680462,1760725872084,-804.17102365,0.00046999,120]
[391680463,1760725872093,-250.0,0.00046999,120]
[391680464,1760725872102,-500.0,0.00046999,120]
[391680465,1760725872111,-833.92535153,0.00046999,120]
[391680466,1760725872120,-250.0,0.00046999,120]
[391680467,1760725872130,-500.0,0.00046999,120]
[391680468,1760725872139,-864.78058953,0.00046999,120]
[391680469,1760725872151,-250.0,0.00046999,120]
[391680470,1760725872160,-896.77747135,0.00046999,120]
[391680471,1760725872170,-250.0,0.00046999,120]
[391680472,1760725872179,-175.77034143,0.00046999,120]
[391680473,1760725872188,-250.0,0.00046999,120]
[391680474,1760725872198,-250.0,0.00046999,120]
[391680475,1760725872207,-250.0,0.00046999,120]
[391680476,1760725872219,-250.0,0.00046999,120]
[391680477,1760725872229,-250.0,0.00046999,120]
[391680478,1760725872240,-250.0,0.00046999,120]
[391680479,1760725872254,-250.0,0.00046999,120]
[391680480,1760725872263,-250.0,0.00046999,120]
[391680481,1760725872272,-250.0,0.00046999,120]
[391680482,1760725872283,-250.0,0.00046999,120]
[391680483,1760725872292,-250.0,0.00046999,120]
[391680484,1760725872301,-250.0,0.00046999,120]
[391680485,1760725872311,-250.0,0.00046999,120]
[391680486,1760725872321,-250.0,0.00046999,120]
[391680487,1760725872332,-250.0,0.00046999,120]
[391680488,1760725872341,-250.0,0.00046999,120]
[391680489,1760725872351,-250.0,0.00046999,120]
[391680490,1760725872360,-250.0,0.00046999,120]
[391680491,1760725872369,-250.0,0.00046999,120]
[391680492,1760725872379,-250.0,0.00046999,120]
[391680493,1760725872388,-250.0,0.00046999,120]
[391680494,1760725872397,-250.0,0.00046999,120]
[391680495,1760725872407,-250.0,0.00046999,120]
[391680496,1760725872416,-250.0,0.00046999,120]
[391680497,1760725872426,-250.0,0.00046999,120]
[391680498,1760725872435,-250.0,0.00046999,120]
[391680499,1760725872444,-250.0,0.00046999,120]
[391680500,1760725872454,-250.0,0.00046999,120]
[391680501,1760725872466,-250.0,0.00046999,120]
[391680502,1760725872475,-250.0,0.00046999,120]
[391680503,1760725872485,-250.0,0.00046999,120]
[391680504,1760725872494,-250.0,0.00046999,120]
[391680505,1760725872504,-250.0,0.00046999,120]
[391680506,1760725872514,-250.0,0.00046999,120]
[391680507,1760725872523,-250.0,0.00046999,120]
[391680508,1760725872533,-250.0,0.00046999,120]
[391680509,1760725872542,-1000.0,0.00046999,120]
[391680510,1760725872551,-1000.0,0.00046999,120]
[391680511,1760725872560,-1000.0,0.00046999,120]
[391680512,1760725872569,-1000.0,0.00046999,120]
[391680513,1760725872578,-1000.0,0.00046999,120]
[391680514,1760725872587,-1000.0,0.00046999,120]
[391680515,1760725872596,-1000.0,0.00046999,120]
[391680516,1760725872605,-1000.0,0.00046999,120]
[391680517,1760725872614,-1000.0,0.00046999,120]
[391680518,1760725872623,-1000.0,0.00046999,120]
[391680519,1760725872632,-1000.0,0.00046999,120]
[391680520,1760725872642,-1000.0,0.00046999,120]
[391680521,1760725872651,-1000.0,0.00046999,120]
[391680522,1760725872661,-1000.0,0.00046999,120]
[391680523,1760725872670,-1000.0,0.00046999,120]
[391680524,1760725872679,-1000.0,0.00046999,120]
[391680525,1760725872688,-1000.0,0.00046999,120]
[391680526,1760725872697,-1000.0,0.00046999,120]
[391680527,1760725872707,-1000.0,0.00046999,120]
[391680528,1760725872717,-1000.0,0.00046999,120]
[391680529,1760725872727,-220.0,0.00046999,120]
[391680530,1760725872737,-220.0,0.00046999,120]
[391680531,1760725872746,-220.0,0.00046999,120]
[391680532,1760725872756,-250.0,0.00046999,120]
[391680533,1760725872765,-600.0,0.00046999,120]
[391680534,1760725872774,-500.0,0.00046999,120]
[391680535,1760725872784,-151.0,0.00046999,120]
[391680536,1760725872793,-250.0,0.00046999,120]
[391680537,1760725872802,-600.0,0.00046999,120]
[391680538,1760725872811,-500.0,0.00046999,120]
[391680539,1760725872820,-160.0,0.00046999,120]
[391680540,1760725872830,-250.0,0.00046999,120]
[391680541,1760725872839,-500.0,0.00046999,120]
[391680542,1760725872848,-151.0,0.00046999,120]
[391680543,1760725872857,-250.0,0.00046999,120]
[391680544,1760725872866,-160.0,0.00046999,120]
[391680545,1760725872875,-518.5,0.00046999,120]
[391680546,1760725872884,-500.0,0.00046999,120]
[391680547,1760725872893,-600.0,0.00046999,120]
[391680548,1760725872902,-151.0,0.00046999,120]
[391680549,1760725872912,-250.0,0.00046999,120]
[391680550,1760725872922,-160.0,0.00046999,120]
[391680551,1760725872932,-537.6845,0.00046999,120]
[391680552,1760725872942,-500.0,0.00046999,120]
[391680553,1760725872951,-250.0,0.00046999,120]
[391680554,1760725872960,-600.0,0.00046999,120]
[391680555,1760725872971,-250.0,0.00046999,120]
[391680556,1760725872981,-160.0,0.00046999,120]
[391680557,1760725872990,-151.0,0.00046999,120]
[391680558,1760725872999,-557.5788265,0.00046999,120]
[391680559,1760725873009,-250.0,0.00046999,120]
[391680560,1760725873019,-250.0,0.00046999,120]
[391680561,1760725873027,-160.0,0.00046999,120]
[391680562,1760725873037,-600.0,0.00046999,120]
[391680563,1760725873046,-500.0,0.00046999,120]
[391680564,1760725873055,-151.0,0.00046999,120]
[391680565,1760725873064,-578.20924308,0.00046999,120]
[391680566,1760725873073,-250.0,0.00046999,120]
[391680567,1760725873082,-250.0,0.00046999,120]
[391680568,1760725873091,-600.0,0.00046999,120]
[391680569,1760725873100,-500.0,0.00046999,120]
[391680570,1760725873110,-160.0,0.00046999,120]
[391680571,1760725873119,-151.0,0.00046999,120]
[391680572,1760725873128,-250.0,0.00046999,120]
[391680573,1760725873137,-599.60298507,0.00046999,120]
[391680574,1760725873146,-500.0,0.00046999,120]
[391680575,1760725873155,-151.0,0.00046999,120]
[391680576,1760725873164,-160.0,0.00046999,120]
[391680577,1760725873173,-250.0,0.00046999,120]
[391680578,1760725873183,-600.0,0.00046999,120]
[391680579,1760725873191,-250.0,0.00046999,120]
[391680580,1760725873201,-621.78829552,0.00046999,120]
[391680581,1760725873210,-500.0,0.00046999,120]
[391680582,1760725873222,-151.0,0.00046999,120]
[391680583,1760725873231,-160.0,0.00046999,120]
[391680584,1760725873242,-250.0,0.00046999,120]
[391680585,1760725873253,-600.0,0.00046999,120]
[391680586,1760725873262,-250.0,0.00046999,120]
[391680587,1760725873272,-644.79446246,0.00046999,120]
[391680588,1760725873281,-500.0,0.00046999,120]
[391680589,1760725873291,-151.0,0.00046999,120]
[391680590,1760725873300,-160.0,0.00046999,120]
[391680591,1760725873311,-250.0,0.00046999,120]
[391680592,1760725873324,-250.0,0.00046999,120]
[391680593,1760725873334,-668.65185757,0.00046999,120]
[391680594,1760725873343,-500.0,0.00046999,120]
[391680595,1760725873352,-600.0,0.00046999,120]
[391680596,1760725873362,-300.0,0.00046999,120]
[391680597,1760725873371,-250.0,0.00046999,120]
[391680598,1760725873381,-161.87821488,0.00046999,120]
[391680599,1760725873390,-250.0,0.00046999,120]
[391680600,1760725873399,-693.3919763,0.00046999,120]
[391680601,1760725873408,-239.79609754,0.00046999,120]
[391680602,1760725873418,-600.0,0.00046999,120]
[391680603,1760725873427,-337.04050925,0.00046999,120]
[391680604,1760725873436,-500.0,0.00046999,120]
[391680605,1760725873446,-719.04747942,0.00046999,120]
[391680606,1760725873455,-250.0,0.00046999,120]
[391680607,1760725873465,-500.0,0.00046999,120]
[391680608,1760725873476,-642.99635445,0.00046999,120]
[391680609,1760725873485,-250.0,0.00046999,120]
[391680610,1760725873495,-500.0,0.00046999,120]
[391680611,1760725873504,-250.0,0.00046999,120]
[391680612,1760725873513,-500.0,0.00046999,120]
[391680613,1760725873523,-250.0,0.00046999,120]
[391680614,1760725873532,-500.0,0.00046999,120]
[391680615,1760725873542,-250.0,0.00046999,120]
[391680616,1760725873552,-500.0,0.00046999,120]
[391680617,1760725873561,-151.0,0.00046999,120]
[391680618,1760725873570,-200.0,0.00046999,50]
[391680619,1760725873580,-250.0,0.00046999,120]
[391680620,1760725873590,-500.0,0.00046999,120]
[391680621,1760725873600,-250.0,0.00046999,120]
[391680622,1760725873610,-156.587,0.00046999,120]
[391680623,1760725873619,-500.0,0.00046999,120]
[391680624,1760725873628,-1000.0,0.00046999,120]
[391680625,1760725873638,-207.4,0.00046999,50]
[391680626,1760725873647,-250.0,0.00046999,120]
[391680627,1760725873657,-500.0,0.00046999,120]
[391680628,1760725873667,-1000.0,0.00046999,120]
[391680629,1760725873677,-215.0738,0.00046999,50]
[391680630,1760725873687,-162.380719,0.00046999,120]
[391680631,1760725873697,-250.0,0.00046999,120]
[391680632,1760725873707,-500.0,0.00046999,120]
[391680633,1760725873718,-670.971821,0.00046999,120]
[391680634,1760725873731,-223.0315306,0.00046999,50]
[391680635,1760725873741,-168.3888056,0.00046999,120]
[391680636,1760725873751,-1000.0,0.00046999,120]
[391680637,1760725873761,-231.28369723,0.00046999,50]
[391680638,1760725873770,-174.61919141,0.00046999,120]
[391680639,1760725873781,-151.0,0.00046999,120]
[391680640,1760725873791,-1000.0,0.00046999,120]
[391680641,1760725873801,-151.0,0.00046999,120]
[391680642,1760725873811,-239.84119403,0.00046999,50]
[391680643,1760725873820,-670.971821,0.00046999,120]
[391680644,1760725873829,-181.08010149,0.00046999,120]
[391680645,1760725873839,-151.0,0.00046999,120]
[391680646,1760725873849,-1000.0,0.00046999,120]
[391680647,1760725873857,-151.0,0.00046999,120]
[391680648,1760725873867,-248.71531821,0.00046999,50]
[391680649,1760725873876,-187.78006525,0.00046999,120]
[391680650,1760725873886,-151.0,0.00046999,120]
[391680651,1760725873895,-1000.0,0.00046999,120]
[391680652,1760725873904,-151.0,0.00046999,120]
[391680653,1760725873914,-257.91778498,0.00046999,50]
[391680654,1760725873923,-151.0,0.00046999,120]
[391680655,1760725873932,-194.72792766,0.00046999,120]
[391680656,1760725873942,-151.0,0.00046999,120]
[391680657,1760725873951,-1000.0,0.00046999,120]
[391680658,1760725873960,-670.971821,0.00046999,120]
[391680659,1760725873971,-151.0,0.00046999,120]
[391680660,1760725873982,-181.24048404,0.00046999,120]
[391680661,1760725873992,-151.0,0.00046999,120]
[391680662,1760725874002,-1000.0,0.00046999,120]
[391680663,1760725874011,-267.46074303,0.00046999,50]
[391680664,1760725874022,-154.421392,0.00046999,120]
[391680665,1760725874032,-151.0,0.00046999,120]
[391680666,1760725874041,-1000.0,0.00046999,120]
[391680667,1760725874051,-151.0,0.00046999,120]
[391680668,1760725874060,-277.35679052,0.00046999,50]
[391680669,1760725874069,-670.971821,0.00046999,120]
[391680670,1760725874079,-151.0,0.00046999,120]
[391680671,1760725874089,-1000.0,0.00046999,120]
[391680672,1760725874099,-154.421392,0.00046999,120]
[391680673,1760725874108,-151.0,0.00046999,120]
[391680674,1760725874117,-151.0,0.00046999,120]
[391680675,1760725874126,-1000.0,0.00046999,120]
[391680676,1760725874135,-287.61899177,0.00046999,50]
[391680677,1760725874145,-151.0,0.00046999,120]
[391680678,1760725874154,-151.0,0.00046999,120]
[391680679,1760725874164,-1000.0,0.00046999,120]
[391680680,1760725874173,-298.26089446,0.00046999,50]
[391680681,1760725874182,-519.394279,0.00046999,120]
[391680682,1760725874191,-154.421392,0.00046999,120]
[391680683,1760725874200,-309.29654756,0.00046999,50]
[391680684,1760725874209,-1000.0,0.00046999,120]
[391680685,1760725874220,-151.0,0.00046999,120]
[391680686,1760725874230,-151.0,0.00046999,120]
[391680687,1760725874240,-300.0,0.00046999,120]
[391680688,1760725874254,-1000.0,0.00046999,120]
[391680689,1760725874263,-320.74051982,0.00046999,50]
[391680690,1760725874273,-151.0,0.00046999,120]
[391680691,1760725874283,-519.394279,0.00046999,120]
[391680692,1760725874295,-283.264368,0.00046999,120]
[391680693,1760725874304,-332.60791905,0.00046999,50]
[391680694,1760725874314,-151.0,0.00046999,120]
[391680695,1760725874324,-154.421392,0.00046999,120]
[391680696,1760725874334,-151.0,0.00046999,120]
[391680697,1760725874343,-151.0,0.00046999,120]
[391680698,1760725874353,-311.1,0.00046999,120]
[391680699,1760725874362,-1000.0,0.00046999,120]
[391680700,1760725874372,-344.91441206,0.00046999,50]
[391680701,1760725874381,-151.0,0.00046999,120]
[391680702,1760725874391,-1000.0,0.00046999,120]
[391680703,1760725874400,-357.6762453,0.00046999,50]
[391680704,1760725874410,-151.0,0.00046999,120]
[391680705,1760725874419,-151.0,0.00046999,120]
[391680706,1760725874428,-322.6107,0.00046999,120]
[391680707,1760725874438,-283.264368,0.00046999,120]
[391680708,1760725874448,-519.394279,0.00046999,120]
[391680709,1760725874458,-1000.0,0.00046999,120]
[391680710,1760725874467,-151.0,0.00046999,120]
[391680711,1760725874478,-151.0,0.00046999,120]
[391680712,1760725874488,-334.5472959,0.00046999,120]
[391680713,1760725874497,-151.0,0.00046999,120]
[391680714,1760725874507,-151.0,0.00046999,120]
[391680715,1760725874516,-1000.0,0.00046999,120]
[391680716,1760725874526,-370.91026638,0.00046999,50]
[391680717,1760725874537,-346.92554585,0.00046999,120]
[391680718,1760725874546,-151.0,0.00046999,120]
[391680719,1760725874556,-295.37683297,0.00046999,120]
[391680720,1760725874565,-283.264368,0.00046999,120]
[391680721,1760725874575,-1000.0,0.00046999,120]
[391680722,1760725874585,-384.63394623,0.00046999,50]
[391680723,1760725874594,-519.394279,0.00046999,120]
[391680724,1760725874604,-151.0,0.00046999,120]
[391680725,1760725874613,-359.76179104,0.00046999,120]
[391680726,1760725874622,-1000.0,0.00046999,120]
[391680727,1760725874631,-302.67889,0.00046999,120]
[391680728,1760725874640,-398.86540225,0.00046999,50]
[391680729,1760725874650,-151.0,0.00046999,120]
[391680730,1760725874660,-373.07297731,0.00046999,120]
[391680731,1760725874669,-151.0,0.00046999,120]
[391680732,1760725874678,-386.87667747,0.00046999,120]
[391680733,1760725874687,-283.264368,0.00046999,120]
[391680734,1760725874697,-151.0,0.00046999,120]
[391680735,1760725874706,-401.19111454,0.00046999,120]
[391680736,1760725874716,-302.67889,0.00046999,120]
[391680737,1760725874729,-184.8544265,0.00046999,120]
[391680738,1760725874738,-416.03518578,0.00046999,120]
[391680739,1760725874748,-3000.0,0.00046999,120]
[391680740,1760725874758,-151.0,0.00046999,120]
[391680741,1760725874768,-431.42848765,0.00046999,120]
[391680742,1760725874778,-3000.0,0.00046999,120]
[391680743,1760725874787,-302.67889,0.00046999,120]
[391680744,1760725874797,-1000.0,0.00046999,120]
[391680745,1760725874807,-151.0,0.00046999,120]
[391680746,1760725874818,-447.3913417,0.00046999,120]
[391680747,1760725874828,-3000.0,0.00046999,120]
[391680748,1760725874838,-151.0,0.00046999,120]
[391680749,1760725874847,-1000.0,0.00046999,120]
[391680750,1760725874857,-463.94482134,0.00046999,120]
[391680751,1760725874866,-3000.0,0.00046999,120]
[391680752,1760725874876,-151.0,0.00046999,120]
[391680753,1760725874886,-302.67889,0.00046999,120]
[391680754,1760725874896,-1000.0,0.00046999,120]
[391680755,1760725874905,-3000.0,0.00046999,120]
[391680756,1760725874915,-213.853655,0.00046999,120]
[391680757,1760725874925,-151.0,0.00046999,120]
[391680758,1760725874934,-151.0,0.00046999,120]
[391680759,1760725874944,-1000.0,0.00046999,120]
[391680760,1760725874965,-481.11077973,0.00046999,120]
[391680761,1760725874979,-3000.0,0.00046999,120]
[391680762,1760725874989,-151.0,0.00046999,120]
[391680763,1760725874999,-1000.0,0.00046999,120]
[391680764,1760725875008,-151.0,0.00046999,120]
[391680765,1760725875018,-260.04695123,0.00046999,120]
[391680766,1760725875027,-3000.0,0.00046999,120]
[391680767,1760725875037,-1000.0,0.00046999,120]
[391680768,1760725875046,-3000.0,0.00046999,120]
[391680769,1760725875056,-151.0,0.00046999,120]
[391680770,1760725875065,-151.0,0.00046999,120]
[391680771,1760725875075,-1000.0,0.00046999,120]
[391680772,1760725875084,-3000.0,0.00046999,120]
[391680773,1760725875094,-151.0,0.00046999,120]
[391680774,1760725875230,-151.0,0.00046999,120]
[391680775,1760725875241,-644.75053,0.00046999,30]
[391680776,1760725875255,-1000.0,0.00046999,120]
[391680777,1760725875265,-3000.0,0.00046999,120]
[391680778,1760725875275,-151.0,0.00046999,120]
[391680779,1760725875285,-151.0,0.00046999,120]
[391680780,1760725875295,-1000.0,0.00046999,120]
[391680781,1760725875305,-151.0,0.00046999,120]
[391680782,1760725875315,-3000.0,0.00046999,120]
[391680783,1760725875327,-371.298268,0.00046999,120]
[391680784,1760725875336,-151.0,0.00046999,120]
[391680785,1760725875346,-644.75053,0.00046999,30]
[391680786,1760725875355,-1000.0,0.00046999,120]
[391680787,1760725875365,-3000.0,0.00046999,120]
[391680788,1760725875374,-151.0,0.00046999,120]
[391680789,1760725875384,-151.0,0.00046999,120]
[391680790,1760725875394,-6888.0,0.00046999,120]
[391680791,1760725875403,-1000.0,0.00046999,120]
[391680792,1760725875413,-3000.0,0.00046999,120]
[391680793,1760725875423,-151.0,0.00046999,120]
[391680794,1760725875432,-151.0,0.00046999,120]
[391680795,1760725875441,-371.298268,0.00046999,120]
[391680796,1760725875451,-1000.0,0.00046999,120]
[391680797,1760725875460,-50000.0,0.00047,47]
[391680798,1760725875469,-411511.87485417,0.00047,120]
[391680799,1760725875482,-1000000.0,0.00047,120]
[391680800,1760725875491,-8436.0,0.00047,120]
[391680801,1760725875501,-12567.0,0.00047,120]
[391680802,1760725875511,-1688.0,0.00047,120]
[391680803,1760725875521,-200.0,0.00047,7]
[391680804,1760725875531,-1091.0,0.00047,30]
[391680805,1760725875540,-2100.0,0.00047,120]
[391680806,1760725875550,-608.74484667,0.00047,30]
[391680807,1760725875559,-200.0,0.00047,120]
[391680808,1760725875569,-1091.0,0.00047,30]
[391680809,1760725875579,-151.0,0.00047,120]
[391680810,1760725875588,-151.0,0.00047,120]
[391680811,1760725875598,-151.0,0.00047,120]
[391680812,1760725875607,-151.0,0.00047,120]
[391680813,1760725875616,-151.0,0.00047,120]
[391680814,1760725875626,-151.0,0.00047,120]
[391680815,1760725875635,-151.0,0.00047,120]
[391680816,1760725875644,-151.0,0.00047,120]
[391680817,1760725875654,-151.0,0.00047,120]
[391680818,1760725875663,-151.0,0.00047,120]
[391680819,1760725875673,-258.432712,0.00047,120]
[391680820,1760725875683,-151.0,0.00047,10]
[391680821,1760725875693,-664.705877,0.00047,120]
[391680822,1760725875702,-151.0,0.00047,120]
[391680823,1760725875711,-664.705877,0.00047,120]
[391680824,1760725875720,-664.705877,0.00047,120]
[391680825,1760725875730,-664.705877,0.00047,120]
[391680826,1760725875739,-151.0,0.00047,120]
[391680827,1760725875748,-151.0,0.00047,120]
[391680828,1760725875758,-151.0,0.00047,120]
[391680829,1760725875767,-151.0,0.00047,120]
[391680830,1760725875776,-151.0,0.00047,120]
[391680831,1760725875785,-151.0,0.00047,120]
[391680832,1760725875794,-346.497404,0.00047,120]
[391680833,1760725875803,-280.345504,0.00047,120]
[391680834,1760725875813,-346.497404,0.00047,120]
[391680835,1760725875822,-280.345504,0.00047,120]
[391680836,1760725875831,-346.497404,0.00047,120]
[391680837,1760725875840,-280.345504,0.00047,120]
[391680838,1760725875853,-346.497404,0.00047,120]
[391680839,1760725875867,-280.345504,0.00047,120]
[391680840,1760725875877,-151.0,0.00047,120]
[391680841,1760725875886,-279.408467,0.00047,120]
[391680842,1760725875895,-200.0,0.00047,7]
[391680843,1760725875904,-151.0,0.00047,120]
[391680844,1760725875913,-151.0,0.00047,120]
[391680845,1760725875923,-151.0,0.00047,120]
[391680846,1760725875933,-162.704928,0.00047,120]
[391680847,1760725875942,-162.704928,0.00047,120]
[391680848,1760725875951,-162.704928,0.00047,120]
[391680849,1760725875960,-162.704928,0.00047,120]
[391680850,1760725875972,-192.413167,0.00047,120]
[391680851,1760725875981,-192.413167,0.00047,120]
[391680852,1760725875991,-192.413167,0.00047,120]
[391680853,1760725876001,-153.0,0.00047,120]
[391680854,1760725876011,-192.413167,0.00047,120]
[391680855,1760725876020,-233.96347,0.000471,30]
[391680856,1760725876030,-1579.12,0.00047181,120]
[391680857,1760725876039,-153.46548,0.000472,36]
[391680858,1760725876048,-5852.195,0.00047212,79]
[391680859,1760725876057,-368.656,0.00047212,79]
[391680860,1760725876067,-4112.33,0.00047233,120]
[391680861,1760725876077,-600.0,0.00047274,60]
[391680862,1760725876086,-233.96347,0.000473,30]
[391680863,1760725876095,-360648.2287,0.00047444,30]
[391680864,1760725876105,-150.0,0.0004746,120]
[391680865,1760725876114,-200.0,0.0004747,7]
[391680866,1760725876124,-200.0,0.0004747,7]
[391680867,1760725876133,-2546.0,0.00047474,2]
[391680868,1760725876142,-749.0,0.00047474,2]
[391680869,1760725876152,-3356.0,0.00047474,2]
[391680870,1760725876161,-3408.0,0.00047474,2]
[391680871,1760725876170,-50000.0,0.000475,33]
[391680872,1760725876180,-564.33123333,0.000475,120]
[391680873,1760725876190,-1570.0,0.000475,120]
[391680874,1760725876199,-233.96347,0.000475,30]
[391680875,1760725876210,-181.0,0.000475,120]
[391680876,1760725876220,-5286.76974974,0.000476,2]
[391680877,1760725876230,-1000.0,0.00047666,60]
[391680878,1760725876240,-500.0,0.000477,15]
[391680879,1760725876254,-233.96347,0.000477,30]
[391680880,1760725876263,-153.46549,0.000477,38]
[391680881,1760725876272,-20000.0,0.000478,120]
[391680882,1760725876282,-20000.0,0.000478,120]